[Event "*** Titled Tuesday Blitz"]
[Site "Chess.com"]
[Date "2020.02.04"]
[Round "8"]
[White "MateusViageiro"]
[Black "HashtagChess"]
[Result "1-0"]
[WhiteElo "2181"]
[BlackElo "1618"]
[TimeControl "180+2"]
[EndTime "14:51:33 PST"]
[Termination "MateusViageiro won by resignation"]

1. e4 {[%clk 0:02:49.9]} 1... c5 {[%clk 0:02:58.8]} 2. Nf3 {[%clk 0:02:49.9]}
2... e6 {[%clk 0:02:59.6]} 3. d4 {[%clk 0:02:50.8]} 3... cxd4 {[%clk 0:03:01.5]}
4. Nxd4 {[%clk 0:02:52.6]} 4... a6 {[%clk 0:03:02.5]} 5. Bd3 {[%clk 0:02:52.8]}
5... Nc6 {[%clk 0:03:02.4]} 6. Nb3 {[%clk 0:02:51.7]} 6... Qc7 {[%clk
0:02:55.9]} 7. O-O {[%clk 0:02:52.1]} 7... b5 {[%clk 0:02:57]} 8. Kh1 {[%clk
0:02:53.1]} 8... Bb7 {[%clk 0:02:56.4]} 9. f4 {[%clk 0:02:53.6]} 9... d6 {[%clk
0:02:43.2]} 10. a4 {[%clk 0:02:53.2]} 10... b4 {[%clk 0:02:33.5]} 11. N3d2
{[%clk 0:02:53.6]} 11... a5 {[%clk 0:02:33.1]} 12. Nc4 {[%clk 0:02:53.8]} 12...
g6 {[%clk 0:02:25.5]} 13. Be3 {[%clk 0:02:53.6]} 13... Rb8 {[%clk 0:01:45.6]}
14. Bb6 {[%clk 0:02:49.6]} 14... Qd7 {[%clk 0:01:41]} 15. Nxa5 {[%clk
0:02:46.6]} 15... Nxa5 {[%clk 0:01:39.5]} 16. Bxa5 {[%clk 0:02:47.4]} 16... Bg7
{[%clk 0:01:40.5]} 17. c3 {[%clk 0:02:45.5]} 17... bxc3 {[%clk 0:01:39.3]} 18.
Bb4 {[%clk 0:02:42.4]} 18... Nf6 {[%clk 0:01:35.2]} 19. Bxc3 {[%clk 0:02:42.1]}
19... O-O {[%clk 0:01:31.9]} 20. Nd2 {[%clk 0:02:41.7]} 20... Rfd8 {[%clk
0:00:59.3]} 21. Qe2 {[%clk 0:02:41.3]} 21... Qc6 {[%clk 0:00:51]} 22. a5 {[%clk
0:02:40.2]} 22... d5 {[%clk 0:00:28.1]} 23. e5 {[%clk 0:02:24.4]} 23... Ne4
{[%clk 0:00:22.2]} 24. a6 {[%clk 0:02:21.5]} 24... Nxc3 {[%clk 0:00:20.2]} 25.
bxc3 {[%clk 0:02:20]} 25... Ba8 {[%clk 0:00:21.5]} 26. a7 {[%clk 0:02:09.8]}
26... Rb2 {[%clk 0:00:22.6]} 27. Rfc1 {[%clk 0:01:55.4]} 27... Rc8 {[%clk
0:00:17.8]} 28. c4 {[%clk 0:01:53.3]} 28... dxc4 {[%clk 0:00:18]} 29. Rxc4
{[%clk 0:01:53.3]} 29... Qxg2+ {[%clk 0:00:16.3]} 30. Qxg2 {[%clk 0:01:53.2]}
30... Bxg2+ {[%clk 0:00:18.2]} 31. Kxg2 {[%clk 0:01:49.3]} 31... Rxd2+ {[%clk
0:00:20.1]} 32. Kg1 {[%clk 0:01:48.9]} 32... Ra8 {[%clk 0:00:18.3]} 33. Be4
{[%clk 0:01:49.1]} 1-0

[Event "*** Titled Tuesday Blitz"]
[Site "Chess.com"]
[Date "2020.02.04"]
[Round "8"]
[White "Fortitudine"]
[Black "RestartingChess"]
[Result "1-0"]
[WhiteElo "2248"]
[BlackElo "2340"]
[TimeControl "180+2"]
[EndTime "14:51:51 PST"]
[Termination "Fortitudine won by resignation"]

1. d4 {[%clk 0:03:01.9]} 1... Nf6 {[%clk 0:03:00]} 2. Nc3 {[%clk 0:03:01.9]}
2... d5 {[%clk 0:03:00.4]} 3. Bg5 {[%clk 0:03:03]} 3... Bf5 {[%clk 0:03:00.4]}
4. e3 {[%clk 0:03:02.8]} 4... e6 {[%clk 0:03:01.6]} 5. Bd3 {[%clk 0:03:02.8]}
5... Bxd3 {[%clk 0:03:01.6]} 6. Qxd3 {[%clk 0:03:04.7]} 6... h6 {[%clk
0:03:02.4]} 7. Bh4 {[%clk 0:03:04.7]} 7... Bd6 {[%clk 0:03:03.1]} 8. Nge2 {[%clk
0:03:03.2]} 8... Nbd7 {[%clk 0:03:04.2]} 9. Bg3 {[%clk 0:02:58.1]} 9... Nb6
{[%clk 0:03:03.2]} 10. e4 {[%clk 0:02:25.9]} 10... Bb4 {[%clk 0:02:52.5]} 11.
Qb5+ {[%clk 0:02:23.6]} 11... Qd7 {[%clk 0:02:53.1]} 12. Qxb4 {[%clk 0:02:24.9]}
12... dxe4 {[%clk 0:02:54.6]} 13. Be5 {[%clk 0:01:32]} 13... O-O-O {[%clk
0:02:39.7]} 14. Bxf6 {[%clk 0:01:08.9]} 14... gxf6 {[%clk 0:02:40]} 15. Nxe4
{[%clk 0:00:58.8]} 15... f5 {[%clk 0:02:41.2]} 16. Nc5 {[%clk 0:00:50.1]} 16...
Qc6 {[%clk 0:02:40.4]} 17. f3 {[%clk 0:00:46.3]} 17... Rhe8 {[%clk 0:02:35.1]}
18. O-O-O {[%clk 0:00:45.2]} 18... e5 {[%clk 0:02:32]} 19. dxe5 {[%clk
0:00:40.5]} 19... Rxd1+ {[%clk 0:02:32.3]} 20. Rxd1 {[%clk 0:00:41.8]} 20...
Rxe5 {[%clk 0:02:33.9]} 21. Qd4 {[%clk 0:00:29.8]} 21... Re8 {[%clk 0:02:16.4]}
22. Nc3 {[%clk 0:00:25.5]} 22... a6 {[%clk 0:02:08.3]} 23. Nd3 {[%clk
0:00:23.4]} 23... Kb8 {[%clk 0:02:01.8]} 24. Ne5 {[%clk 0:00:23.1]} 24... Qe6
{[%clk 0:01:45.7]} 25. Nd7+ {[%clk 0:00:22.7]} 25... Nxd7 {[%clk 0:01:44]} 26.
Qxd7 {[%clk 0:00:24.6]} 26... Qe3+ {[%clk 0:01:45.2]} 27. Qd2 {[%clk 0:00:25.1]}
27... f4 {[%clk 0:01:42.6]} 28. Qxe3 {[%clk 0:00:25.8]} 28... fxe3 {[%clk
0:01:44.5]} 29. Re1 {[%clk 0:00:26.6]} 29... f5 {[%clk 0:01:44.2]} 30. f4 {[%clk
0:00:27.7]} 30... c6 {[%clk 0:01:43.9]} 31. g3 {[%clk 0:00:28.7]} 31... Kc7
{[%clk 0:01:44.4]} 32. Nd1 {[%clk 0:00:30]} 32... e2 {[%clk 0:01:44.6]} 33. Nc3
{[%clk 0:00:31.3]} 33... Re3 {[%clk 0:01:45.6]} 34. Rxe2 {[%clk 0:00:31.1]}
34... Rf3 {[%clk 0:01:47.1]} 35. Kd2 {[%clk 0:00:32.3]} 35... Rf1 {[%clk
0:01:48.3]} 36. Re1 {[%clk 0:00:33.3]} 36... Rf2+ {[%clk 0:01:49.4]} 37. Re2
{[%clk 0:00:35.2]} 37... Rf1 {[%clk 0:01:50.9]} 38. Nd1 {[%clk 0:00:36.4]} 38...
Rh1 {[%clk 0:01:51.3]} 39. Ne3 {[%clk 0:00:36.2]} 39... c5 {[%clk 0:01:45.9]}
40. Nxf5 {[%clk 0:00:36.2]} 40... b5 {[%clk 0:01:47.7]} 41. a3 {[%clk
0:00:36.6]} 41... Kb6 {[%clk 0:01:48.4]} 42. g4 {[%clk 0:00:37.1]} 42... b4
{[%clk 0:01:49.7]} 43. axb4 {[%clk 0:00:37.7]} 43... cxb4 {[%clk 0:01:51.6]} 44.
g5 {[%clk 0:00:39.3]} 44... a5 {[%clk 0:01:53.5]} 45. gxh6 {[%clk 0:00:40]} 1-0

[Event "*** Titled Tuesday Blitz"]
[Site "Chess.com"]
[Date "2020.02.04"]
[Round "8"]
[White "XiaoKangZhong"]
[Black "Perecke"]
[Result "1-0"]
[WhiteElo "2360"]
[BlackElo "2275"]
[TimeControl "180+2"]
[EndTime "14:51:55 PST"]
[Termination "XiaoKangZhong won by resignation"]

1. e4 {[%clk 0:03:01.9]} 1... e5 {[%clk 0:02:58.7]} 2. Nf3 {[%clk 0:03:01.8]}
2... Nc6 {[%clk 0:02:58.2]} 3. Bc4 {[%clk 0:03:01]} 3... Be7 {[%clk 0:02:57.7]}
4. O-O {[%clk 0:03:01.5]} 4... Nf6 {[%clk 0:02:52.1]} 5. Re1 {[%clk 0:02:59.2]}
5... O-O {[%clk 0:02:51.6]} 6. c3 {[%clk 0:02:59.9]} 6... d6 {[%clk 0:02:46.8]}
7. d4 {[%clk 0:03:00.3]} 7... exd4 {[%clk 0:02:44.6]} 8. cxd4 {[%clk 0:03:02.2]}
8... Bg4 {[%clk 0:02:45.6]} 9. d5 {[%clk 0:02:50.5]} 9... Bxf3 {[%clk
0:02:16.8]} 10. Qxf3 {[%clk 0:02:47.2]} 10... Ne5 {[%clk 0:02:18]} 11. Qb3
{[%clk 0:02:47.4]} 11... Nxc4 {[%clk 0:02:19.9]} 12. Qxc4 {[%clk 0:02:48.9]}
12... Qd7 {[%clk 0:02:17.9]} 13. Nc3 {[%clk 0:02:47.4]} 13... c6 {[%clk
0:02:11.8]} 14. f3 {[%clk 0:02:44.5]} 14... Rfc8 {[%clk 0:02:10.8]} 15. Qd4
{[%clk 0:02:43.2]} 15... Bd8 {[%clk 0:02:11.4]} 16. Kh1 {[%clk 0:02:42.8]} 16...
Bb6 {[%clk 0:02:11.5]} 17. Qd3 {[%clk 0:02:43.6]} 17... cxd5 {[%clk 0:02:06.2]}
18. exd5 {[%clk 0:02:43.7]} 18... Re8 {[%clk 0:02:04.1]} 19. Bg5 {[%clk
0:02:44.1]} 19... Bd8 {[%clk 0:01:44.5]} 20. Rxe8+ {[%clk 0:02:31.5]} 20... Qxe8
{[%clk 0:01:43.3]} 21. Qd2 {[%clk 0:02:30]} 21... h6 {[%clk 0:01:39.5]} 22. Re1
{[%clk 0:02:25.9]} 22... Qd7 {[%clk 0:01:40.3]} 23. Be3 {[%clk 0:02:10.9]} 23...
Ba5 {[%clk 0:01:31.5]} 24. a3 {[%clk 0:02:07.4]} 24... Re8 {[%clk 0:01:14.7]}
25. b4 {[%clk 0:02:07]} 25... Bc7 {[%clk 0:01:12.7]} 26. Bd4 {[%clk 0:02:04]}
26... Nh7 {[%clk 0:01:03.3]} 27. Rxe8+ {[%clk 0:01:55.3]} 27... Qxe8 {[%clk
0:01:04.2]} 28. Kg1 {[%clk 0:01:56.9]} 28... Nf8 {[%clk 0:00:51.5]} 29. Ne4
{[%clk 0:01:52.5]} 29... f5 {[%clk 0:00:41]} 30. Ng3 {[%clk 0:01:46.1]} 30... g6
{[%clk 0:00:39]} 31. Qxh6 {[%clk 0:01:42]} 31... Qe7 {[%clk 0:00:23.4]} 32. Qh8+
{[%clk 0:01:30.7]} 32... Kf7 {[%clk 0:00:24.2]} 33. Qg7+ {[%clk 0:01:29.4]}
33... Ke8 {[%clk 0:00:25]} 34. Qxe7+ {[%clk 0:01:30.2]} 34... Kxe7 {[%clk
0:00:26.9]} 35. Ne2 {[%clk 0:01:30.7]} 35... a6 {[%clk 0:00:26.2]} 36. Kf2
{[%clk 0:01:30.9]} 36... Nd7 {[%clk 0:00:26.3]} 37. h4 {[%clk 0:01:30.4]} 37...
Ne5 {[%clk 0:00:26.1]} 38. Nf4 {[%clk 0:01:29.3]} 38... Kf7 {[%clk 0:00:21.7]}
39. Ne6 {[%clk 0:01:27.9]} 1-0

[Event "*** Titled Tuesday Blitz"]
[Site "Chess.com"]
[Date "2020.02.04"]
[Round "8"]
[White "kacprekt"]
[Black "Chigorinetz"]
[Result "0-1"]
[WhiteElo "2412"]
[BlackElo "2576"]
[TimeControl "180+2"]
[EndTime "14:52:00 PST"]
[Termination "Chigorinetz won by resignation"]

1. d4 {[%clk 0:03:01.9]} 1... d5 {[%clk 0:02:50.9]} 2. c4 {[%clk 0:03:03.1]}
2... Nc6 {[%clk 0:02:50.4]} 3. Nf3 {[%clk 0:03:02.5]} 3... Bg4 {[%clk 0:02:50]}
4. Nc3 {[%clk 0:02:55.2]} 4... e6 {[%clk 0:02:49.9]} 5. Qa4 {[%clk 0:02:52]}
5... Bxf3 {[%clk 0:02:48]} 6. gxf3 {[%clk 0:02:52.5]} 6... Bb4 {[%clk 0:02:47]}
7. e3 {[%clk 0:02:52.6]} 7... Ne7 {[%clk 0:02:47]} 8. f4 {[%clk 0:02:51.6]} 8...
O-O {[%clk 0:02:44.6]} 9. Bd2 {[%clk 0:02:52.8]} 9... a6 {[%clk 0:02:40.3]} 10.
a3 {[%clk 0:02:44.1]} 10... Bxc3 {[%clk 0:02:39.5]} 11. bxc3 {[%clk 0:02:41.1]}
11... dxc4 {[%clk 0:02:34.5]} 12. Qxc4 {[%clk 0:02:41.1]} 12... Nd5 {[%clk
0:02:34.2]} 13. e4 {[%clk 0:02:39.1]} 13... Nb6 {[%clk 0:02:26.4]} 14. Qd3
{[%clk 0:02:40.1]} 14... f5 {[%clk 0:02:23.8]} 15. e5 {[%clk 0:02:28.3]} 15...
Qd5 {[%clk 0:02:23.7]} 16. Rg1 {[%clk 0:02:27.4]} 16... Na5 {[%clk 0:02:24.2]}
17. Bg2 {[%clk 0:02:22.7]} 17... Qc4 {[%clk 0:02:23.2]} 18. Qg3 {[%clk
0:02:19.5]} 18... Rf7 {[%clk 0:02:22.4]} 19. Rd1 {[%clk 0:02:10]} 19... Rd8
{[%clk 0:02:19.9]} 20. h4 {[%clk 0:02:04.8]} 20... c5 {[%clk 0:02:16.4]} 21. Bf1
{[%clk 0:02:03.2]} 21... Qb3 {[%clk 0:02:02.6]} 22. dxc5 {[%clk 0:01:56.6]}
22... Nbc4 {[%clk 0:02:02.5]} 23. Be2 {[%clk 0:01:37.1]} 23... Rfd7 {[%clk
0:01:56.7]} 24. f3 {[%clk 0:01:18.6]} 24... Qc2 {[%clk 0:01:55.7]} 25. Bxc4
{[%clk 0:00:55.6]} 25... Nxc4 {[%clk 0:01:57.6]} 26. Rg2 {[%clk 0:00:55.8]}
26... Nxa3 {[%clk 0:01:45.8]} 27. Rc1 {[%clk 0:00:52.2]} 27... Qd3 {[%clk
0:01:43.5]} 28. h5 {[%clk 0:00:42.9]} 28... Nc4 {[%clk 0:01:39.7]} 29. h6 {[%clk
0:00:38.1]} 29... Nxd2 {[%clk 0:01:35.2]} 30. Kf2 {[%clk 0:00:27.1]} 30... Nc4
{[%clk 0:01:22.1]} 31. Kg1 {[%clk 0:00:28.1]} 31... Qe3+ {[%clk 0:01:22]} 32.
Kh2 {[%clk 0:00:28.1]} 32... Qxc1 {[%clk 0:01:21.1]} 33. c6 {[%clk 0:00:29.4]}
33... bxc6 {[%clk 0:01:20.6]} 34. Qg5 {[%clk 0:00:21.6]} 34... Nxe5 {[%clk
0:01:18.4]} 35. Qg3 {[%clk 0:00:13.8]} 35... Ng6 {[%clk 0:01:17.8]} 36. hxg7
{[%clk 0:00:14.1]} 36... Qxf4 {[%clk 0:01:17.1]} 0-1

[Event "*** Titled Tuesday Blitz"]
[Site "Chess.com"]
[Date "2020.02.04"]
[Round "8"]
[White "Gentlejimmy7"]
[Black "almaguerjm"]
[Result "1-0"]
[WhiteElo "2630"]
[BlackElo "2402"]
[TimeControl "180+2"]
[EndTime "14:52:10 PST"]
[Termination "Gentlejimmy7 won by resignation"]

1. d4 {[%clk 0:02:59.2]} 1... Nf6 {[%clk 0:03:00.7]} 2. Nf3 {[%clk 0:03:01.1]}
2... g6 {[%clk 0:02:59.5]} 3. g3 {[%clk 0:03:02.1]} 3... Bg7 {[%clk 0:03:00.8]}
4. Bg2 {[%clk 0:03:03.5]} 4... O-O {[%clk 0:03:02.3]} 5. O-O {[%clk 0:03:05]}
5... d6 {[%clk 0:03:03.6]} 6. b3 {[%clk 0:03:06.1]} 6... Ng4 {[%clk 0:02:57.8]}
7. Bb2 {[%clk 0:03:06.1]} 7... Nd7 {[%clk 0:02:43.2]} 8. Nbd2 {[%clk 0:03:05.5]}
8... c5 {[%clk 0:02:41.7]} 9. a4 {[%clk 0:03:03.7]} 9... h5 {[%clk 0:02:28.6]}
10. h3 {[%clk 0:03:03.4]} 10... Nh6 {[%clk 0:02:29.5]} 11. Rb1 {[%clk
0:03:00.4]} 11... Nf5 {[%clk 0:02:28.2]} 12. dxc5 {[%clk 0:02:59.1]} 12... Bxb2
{[%clk 0:02:25.8]} 13. Rxb2 {[%clk 0:03:01]} 13... Nxc5 {[%clk 0:02:21.4]} 14.
e4 {[%clk 0:03:01.8]} 14... Ng7 {[%clk 0:02:15.9]} 15. Qe2 {[%clk 0:03:01.5]}
15... b6 {[%clk 0:02:14.3]} 16. Re1 {[%clk 0:02:33.8]} 16... Ba6 {[%clk
0:02:07.3]} 17. Qe3 {[%clk 0:02:32.3]} 17... Rc8 {[%clk 0:02:07.8]} 18. Qh6
{[%clk 0:02:29.9]} 18... Nce6 {[%clk 0:02:01.6]} 19. c4 {[%clk 0:02:27.6]} 19...
Qc7 {[%clk 0:01:51.4]} 20. Nb1 {[%clk 0:02:20.5]} 20... Qc5 {[%clk 0:01:49]} 21.
Nc3 {[%clk 0:02:19.8]} 21... Bb7 {[%clk 0:01:46.6]} 22. Nd5 {[%clk 0:02:11.6]}
22... Rfe8 {[%clk 0:01:47.3]} 23. Rd2 {[%clk 0:01:59.9]} 23... a6 {[%clk
0:01:43.6]} 24. Ng5 {[%clk 0:02:00.6]} 24... Nxg5 {[%clk 0:01:40.8]} 25. Qxg5
{[%clk 0:02:02.5]} 25... Ne6 {[%clk 0:01:35.2]} 26. Nxe7+ {[%clk 0:02:00.8]}
26... Kf8 {[%clk 0:01:23.8]} 27. Qf6 {[%clk 0:01:57.6]} 27... Qg5 {[%clk
0:00:47.8]} 28. Qxg5 {[%clk 0:01:51.8]} 28... Nxg5 {[%clk 0:00:48.8]} 29. Nxc8
{[%clk 0:01:53.7]} 29... Bxc8 {[%clk 0:00:49.9]} 30. h4 {[%clk 0:01:49.5]} 30...
Ne6 {[%clk 0:00:45.8]} 31. Rxd6 {[%clk 0:01:48.3]} 31... Ke7 {[%clk 0:00:36.8]}
32. Rxb6 {[%clk 0:01:46.2]} 32... Rd8 {[%clk 0:00:37.9]} 33. Bh3 {[%clk
0:01:43.6]} 33... Rd2 {[%clk 0:00:35.2]} 34. Bxe6 {[%clk 0:01:44]} 34... fxe6
{[%clk 0:00:35.9]} 35. b4 {[%clk 0:01:39.5]} 35... Rd4 {[%clk 0:00:33.6]} 36. c5
{[%clk 0:01:40.6]} 36... e5 {[%clk 0:00:32.6]} 37. b5 {[%clk 0:01:39.2]} 37...
Rxa4 {[%clk 0:00:32.1]} 38. bxa6 {[%clk 0:01:40.4]} 38... Rxa6 {[%clk
0:00:31.4]} 39. Rxa6 {[%clk 0:01:41.3]} 39... Bxa6 {[%clk 0:00:33.3]} 40. Rd1
{[%clk 0:01:41.7]} 40... Bb7 {[%clk 0:00:30.9]} 41. Rd6 {[%clk 0:01:42.1]} 41...
Bxe4 {[%clk 0:00:31]} 42. Kf1 {[%clk 0:01:40.3]} 42... Bf5 {[%clk 0:00:26.3]}
43. Ke2 {[%clk 0:01:39.6]} 43... Bb1 {[%clk 0:00:26.7]} 44. Kd2 {[%clk
0:01:40.5]} 44... Bf5 {[%clk 0:00:27.5]} 45. Kc3 {[%clk 0:01:41.8]} 1-0

[Event "*** Titled Tuesday Blitz"]
[Site "Chess.com"]
[Date "2020.02.04"]
[Round "8"]
[White "Playgood28"]
[Black "colegiodemadrid"]
[Result "0-1"]
[WhiteElo "2272"]
[BlackElo "2362"]
[TimeControl "180+2"]
[EndTime "14:52:15 PST"]
[Termination "colegiodemadrid won by resignation"]

1. d4 {[%clk 0:03:01.9]} 1... Nf6 {[%clk 0:03:00.1]} 2. c4 {[%clk 0:03:02.5]}
2... c5 {[%clk 0:03:01.4]} 3. d5 {[%clk 0:03:02.2]} 3... b5 {[%clk 0:03:02.7]}
4. Qc2 {[%clk 0:03:02]} 4... b4 {[%clk 0:03:03]} 5. e4 {[%clk 0:03:03]} 5... d6
{[%clk 0:03:03.3]} 6. Nf3 {[%clk 0:02:59.6]} 6... g6 {[%clk 0:03:04.4]} 7. h3
{[%clk 0:02:59.7]} 7... Bg7 {[%clk 0:03:05.2]} 8. Bd3 {[%clk 0:03:00.4]} 8...
O-O {[%clk 0:03:06.4]} 9. Bf4 {[%clk 0:03:01.8]} 9... e5 {[%clk 0:03:06.7]} 10.
Be3 {[%clk 0:02:37.8]} 10... Nxe4 {[%clk 0:02:53]} 11. Bxe4 {[%clk 0:02:36.6]}
11... f5 {[%clk 0:02:54.2]} 12. Nbd2 {[%clk 0:02:19.9]} 12... fxe4 {[%clk
0:02:50]} 13. Nxe4 {[%clk 0:02:19.4]} 13... Bf5 {[%clk 0:02:51]} 14. g4 {[%clk
0:02:17.2]} 14... Bxe4 {[%clk 0:02:47.1]} 15. Qxe4 {[%clk 0:02:16.7]} 15... Qa5
{[%clk 0:02:48.3]} 16. O-O {[%clk 0:02:11.7]} 16... Nd7 {[%clk 0:02:47.4]} 17.
Ng5 {[%clk 0:02:10.4]} 17... Nf6 {[%clk 0:02:44.4]} 18. Qd3 {[%clk 0:02:04]}
18... Rae8 {[%clk 0:02:42.7]} 19. Ne6 {[%clk 0:02:03.4]} 19... Rf7 {[%clk
0:02:41.1]} 20. Nxg7 {[%clk 0:01:56.7]} 20... Kxg7 {[%clk 0:02:40.5]} 21. a4
{[%clk 0:01:56.5]} 21... h5 {[%clk 0:02:35.9]} 22. f3 {[%clk 0:01:44.2]} 22...
Qc7 {[%clk 0:02:28.8]} 23. g5 {[%clk 0:01:25.2]} 23... Ng8 {[%clk 0:02:19.5]}
24. f4 {[%clk 0:01:25.2]} 24... exf4 {[%clk 0:02:16.8]} 25. Bxf4 {[%clk
0:01:19.9]} 25... Qd7 {[%clk 0:02:13.7]} 26. b3 {[%clk 0:01:12.8]} 26... Ne7
{[%clk 0:02:12]} 27. Rae1 {[%clk 0:01:06.6]} 27... Nf5 {[%clk 0:02:12.7]} 28.
Rxe8 {[%clk 0:01:03.9]} 28... Qxe8 {[%clk 0:02:14.6]} 29. Bc1 {[%clk 0:01:02.9]}
29... Re7 {[%clk 0:02:09.1]} 30. Qf3 {[%clk 0:00:31.9]} 30... Re4 {[%clk
0:02:01.2]} 31. Bb2+ {[%clk 0:00:28.6]} 31... Kh7 {[%clk 0:02:01.4]} 32. Bc1
{[%clk 0:00:28.9]} 32... Qe5 {[%clk 0:02:00.4]} 33. Bb2 {[%clk 0:00:24.9]} 33...
Qe7 {[%clk 0:01:55.5]} 34. Bc1 {[%clk 0:00:24.7]} 34... a5 {[%clk 0:01:56.6]}
35. Kh1 {[%clk 0:00:22.1]} 35... Kg8 {[%clk 0:01:54.7]} 36. Kg1 {[%clk
0:00:21.9]} 36... Re2 {[%clk 0:01:52.8]} 37. Rf2 {[%clk 0:00:20.2]} 37... Re1+
{[%clk 0:01:49.2]} 38. Rf1 {[%clk 0:00:21.4]} 38... Rxc1 {[%clk 0:01:50.4]} 39.
Rxc1 {[%clk 0:00:20]} 39... Qxg5+ {[%clk 0:01:51.5]} 40. Kh2 {[%clk 0:00:17.3]}
40... Qxc1 {[%clk 0:01:52.1]} 0-1

[Event "*** Titled Tuesday Blitz"]
[Site "Chess.com"]
[Date "2020.02.04"]
[Round "8"]
[White "Blitzstream"]
[Black "Shant_Sargsyan"]
[Result "0-1"]
[WhiteElo "2731"]
[BlackElo "2985"]
[TimeControl "180+2"]
[EndTime "14:52:27 PST"]
[Termination "Shant_Sargsyan won by checkmate"]

1. d4 {[%clk 0:03:01.9]} 1... Nf6 {[%clk 0:03:00.7]} 2. Bg5 {[%clk 0:03:02.3]}
2... d5 {[%clk 0:03:00.8]} 3. e3 {[%clk 0:03:00.2]} 3... e6 {[%clk 0:03:00.4]}
4. c3 {[%clk 0:03:00.9]} 4... Be7 {[%clk 0:03:00.5]} 5. Nd2 {[%clk 0:03:02]}
5... c5 {[%clk 0:03:01]} 6. f4 {[%clk 0:03:03.1]} 6... Nc6 {[%clk 0:03:01.7]} 7.
Ngf3 {[%clk 0:03:04.3]} 7... h6 {[%clk 0:03:02]} 8. Bh4 {[%clk 0:03:05]} 8... g5
{[%clk 0:02:59.6]} 9. Bf2 {[%clk 0:02:41.3]} 9... cxd4 {[%clk 0:03:00.3]} 10.
cxd4 {[%clk 0:02:29.1]} 10... Ne4 {[%clk 0:03:01.7]} 11. Bd3 {[%clk 0:02:18.3]}
11... Nxf2 {[%clk 0:03:02.3]} 12. Kxf2 {[%clk 0:02:20.2]} 12... gxf4 {[%clk
0:03:04.2]} 13. exf4 {[%clk 0:02:20.5]} 13... Qb6 {[%clk 0:03:03.7]} 14. Qb3
{[%clk 0:02:03.9]} 14... Nb4 {[%clk 0:03:01.5]} 15. Be2 {[%clk 0:01:58.4]} 15...
Bd7 {[%clk 0:03:02.1]} 16. a3 {[%clk 0:01:57.1]} 16... Nc6 {[%clk 0:03:03.2]}
17. Qxb6 {[%clk 0:01:57.9]} 17... axb6 {[%clk 0:03:05.1]} 18. Ke3 {[%clk
0:01:51.3]} 18... Bf6 {[%clk 0:03:05.3]} 19. Ne5 {[%clk 0:01:52.1]} 19... Ne7
{[%clk 0:03:05.7]} 20. Bd3 {[%clk 0:01:51.5]} 20... Nc8 {[%clk 0:03:03.9]} 21.
Rac1 {[%clk 0:01:49]} 21... Bd8 {[%clk 0:02:55]} 22. Ndf3 {[%clk 0:01:24.3]}
22... Nd6 {[%clk 0:02:56.5]} 23. Nxd7 {[%clk 0:01:14.5]} 23... Kxd7 {[%clk
0:02:58.4]} 24. Ne5+ {[%clk 0:01:16.2]} 24... Ke7 {[%clk 0:03:00]} 25. g4 {[%clk
0:01:17.5]} 25... b5 {[%clk 0:03:00.9]} 26. h4 {[%clk 0:01:13.8]} 26... Bb6
{[%clk 0:03:01.3]} 27. g5 {[%clk 0:01:09.8]} 27... Ra4 {[%clk 0:03:01.7]} 28.
Nf3 {[%clk 0:01:06]} 28... b4 {[%clk 0:02:57.1]} 29. b3 {[%clk 0:01:00.6]} 29...
Rxa3 {[%clk 0:02:56.2]} 30. Nd2 {[%clk 0:01:01.4]} 30... Ra2 {[%clk 0:02:54]}
31. Nf3 {[%clk 0:00:35.6]} 31... Rb2 {[%clk 0:02:48.7]} 32. Rb1 {[%clk
0:00:36.9]} 32... Ra2 {[%clk 0:02:43.4]} 33. Ra1 {[%clk 0:00:37.6]} 33... Ra3
{[%clk 0:02:42.2]} 34. Rab1 {[%clk 0:00:37.4]} 34... Raa8 {[%clk 0:02:24.8]} 35.
Ne5 {[%clk 0:00:37.6]} 35... Ra2 {[%clk 0:02:11.1]} 36. h5 {[%clk 0:00:25]}
36... Rg2 {[%clk 0:02:03]} 37. g6 {[%clk 0:00:24.9]} 37... f6 {[%clk 0:02:00.4]}
38. Nf3 {[%clk 0:00:24.4]} 38... Rc8 {[%clk 0:01:44.1]} 39. Rhg1 {[%clk
0:00:24.2]} 39... Ra2 {[%clk 0:01:44.8]} 40. g7 {[%clk 0:00:23.6]} 40... Kf7
{[%clk 0:01:22.9]} 41. Bh7 {[%clk 0:00:23.7]} 41... Rc3+ {[%clk 0:01:19.5]} 42.
Bd3 {[%clk 0:00:22.6]} 42... Nf5# {[%clk 0:01:21.2]} 0-1

[Event "*** Titled Tuesday Blitz"]
[Site "Chess.com"]
[Date "2020.02.04"]
[Round "8"]
[White "earling8018"]
[Black "CastleOasisChess"]
[Result "0-1"]
[WhiteElo "2046"]
[BlackElo "2085"]
[TimeControl "180+2"]
[EndTime "14:52:27 PST"]
[Termination "CastleOasisChess won by resignation"]

1. c4 {[%clk 0:03:01.9]} 1... e6 {[%clk 0:03:00.7]} 2. Nc3 {[%clk 0:02:58.8]}
2... d5 {[%clk 0:03:01.5]} 3. cxd5 {[%clk 0:02:58.9]} 3... exd5 {[%clk
0:03:01.8]} 4. d4 {[%clk 0:02:59.7]} 4... c6 {[%clk 0:03:00.9]} 5. Qc2 {[%clk
0:02:44.1]} 5... f5 {[%clk 0:02:58.3]} 6. Nf3 {[%clk 0:02:42.7]} 6... Bd6 {[%clk
0:02:58.4]} 7. Bg5 {[%clk 0:02:28.6]} 7... Nf6 {[%clk 0:02:59.3]} 8. e3 {[%clk
0:02:24.7]} 8... O-O {[%clk 0:02:58.6]} 9. O-O-O {[%clk 0:02:14.5]} 9... h6
{[%clk 0:02:51.1]} 10. Bf4 {[%clk 0:02:10.7]} 10... Ne4 {[%clk 0:02:48.1]} 11.
Bd3 {[%clk 0:02:05.2]} 11... Be6 {[%clk 0:02:37.8]} 12. Bxd6 {[%clk 0:02:01.9]}
12... Qxd6 {[%clk 0:02:39]} 13. Ne5 {[%clk 0:02:03.5]} 13... Nd7 {[%clk
0:02:30.8]} 14. f3 {[%clk 0:01:41.6]} 14... Nxc3 {[%clk 0:02:27.4]} 15. Qxc3
{[%clk 0:01:43]} 15... Nxe5 {[%clk 0:02:15.4]} 16. dxe5 {[%clk 0:01:44.1]} 16...
Qd7 {[%clk 0:02:10.7]} 17. Rhe1 {[%clk 0:01:35.7]} 17... Rfc8 {[%clk 0:01:49.8]}
18. Kb1 {[%clk 0:01:36.4]} 18... c5 {[%clk 0:01:47.5]} 19. Rc1 {[%clk
0:01:36.6]} 19... c4 {[%clk 0:01:42.8]} 20. Bf1 {[%clk 0:01:34.1]} 20... b5
{[%clk 0:01:38.8]} 21. Qd4 {[%clk 0:01:21.1]} 21... a5 {[%clk 0:01:33.4]} 22. g4
{[%clk 0:01:21.8]} 22... fxg4 {[%clk 0:01:30.5]} 23. fxg4 {[%clk 0:01:23]} 23...
Bxg4 {[%clk 0:01:14.2]} 24. Bg2 {[%clk 0:01:24]} 24... Rd8 {[%clk 0:01:10.3]}
25. Rc2 {[%clk 0:00:52.4]} 25... Rac8 {[%clk 0:01:05.9]} 26. Rd2 {[%clk
0:00:49.4]} 26... Be6 {[%clk 0:01:03.9]} 27. Red1 {[%clk 0:00:48.8]} 27... Qf7
{[%clk 0:00:56.9]} 28. e4 {[%clk 0:00:41.4]} 28... Qg6 {[%clk 0:00:54]} 29. Ka1
{[%clk 0:00:41.3]} 29... dxe4 {[%clk 0:00:51.4]} 30. Qxd8+ {[%clk 0:00:28.2]}
30... Rxd8 {[%clk 0:00:49.4]} 31. Rxd8+ {[%clk 0:00:29.6]} 31... Kh7 {[%clk
0:00:50.4]} 32. R8d6 {[%clk 0:00:20.3]} 32... Qxg2 {[%clk 0:00:49.7]} 33. Rxe6
{[%clk 0:00:21.3]} 33... e3 {[%clk 0:00:50.5]} 34. Red6 {[%clk 0:00:18]} 34...
e2 {[%clk 0:00:51.5]} 35. Rc1 {[%clk 0:00:13.2]} 35... Qf1 {[%clk 0:00:51]} 0-1